Workbook

Sheet SLN (ADS)
A1: Asset Cost | B1: $10,000.00 | D1: Year | E1: Depreciation | F1: Book Value
A2: Life (Years) | B2: 10 | D2: 0 | F2: =B1 -> $10,000.00
A3: Convention | B3: Half-Year | D3: 1 | E3: =SLN($B$1,0,$B$2)/2 -> $500.00 | F3: =F2-E3 -> $9,500.00
D4: 2 | E4: =SLN($B$1,0,$B$2) -> $1,000.00 | F4: =F3-E4 -> $8,500.00
D5: 3 | E5: =SLN($B$1,0,$B$2) -> $1,000.00 | F5: $7,500.00
D6: 4 | E6: $1,000.00 | F6: $6,500.00
D7: 5 | E7: $1,000.00 | F7: $5,500.00
D8: 6 | E8: $1,000.00 | F8: $4,500.00
D9: 7 | E9: $1,000.00 | F9: $3,500.00
D10: 8 | E10: $1,000.00 | F10: $2,500.00
D11: 9 | E11: $1,000.00 | F11: $1,500.00
D12: 10 | E12: $1,000.00 | F12: $500.00
D13: 11 | E13: =SLN($B$1,0,$B$2)/2 -> $500.00 | F13: $0.00

Sheet VDB
A1: Asset Cost | B1: $10,000.00 | E1: Year | F1: Start Period | G1: End Period | H1: Depreciation | I1: Book Value
A2: Life (Years) | B2: 10 | E2: 0 | I2: =B1 -> $10,000.00
A3: Convention | B3: Half-Year | E3: 1 | F3: 0 | G3: =E3-0.5 -> 0.5 | H3: =VDB($B$1,0, $B$2, F3, G3) -> $1,000.00 | I3: =I2-H3 -> $9,000.00
E4: 2 | F4: =E4-1.5 -> 0.5 | G4: =E4-0.5 -> 1.5 | H4: =VDB($B$1,0, $B$2, F4, G4) -> $1,800.00 | I4: =I3-H4 -> $7,200.00
E5: 3 | F5: =E5-1.5 -> 1.5 | G5: 2.5 | H5: $1,440.00 | I5: $5,760.00
E6: 4 | F6: 2.5 | G6: 3.5 | H6: $1,152.00 | I6: $4,608.00
E7: 5 | F7: 3.5 | G7: 4.5 | H7: $921.60 | I7: $3,686.40
E8: 6 | F8: 4.5 | G8: 5.5 | H8: $737.28 | I8: $2,949.12
E9: 7 | F9: 5.5 | G9: 6.5 | H9: $655.36 | I9: $2,293.76
E10: 8 | F10: 6.5 | G10: 7.5 | H10: $655.36 | I10: $1,638.40
E11: 9 | F11: 7.5 | G11: 8.5 | H11: $655.36 | I11: $983.04
E12: 10 | F12: 8.5 | G12: 9.5 | H12: $655.36 | I12: $327.68
E13: 11 | F13: 9.5 | G13: =B2 -> 10 | H13: $327.68 | I13: $0.00

Sheet Half-Year Table
B2: Depreciation rate for recovery period
A3: Year | B3: 3-year | C3: 5-year | D3: 7-year | E3: 10-year | F3: 15-year | G3: 20-year
A4: 1 | B4: 33.33% | C4: 20.00% | D4: 14.29% | E4: 10.00% | F4: 5.00% | G4: 3.75%
A5: 2 | B5: 44.45% | C5: 32.00% | D5: 24.49% | E5: 18.00% | F5: 9.50% | G5: 7.22%
A6: 3 | B6: 14.81% | C6: 19.20% | D6: 17.49% | E6: 14.40% | F6: 8.55% | G6: 6.68%
A7: 4 | B7: 7.41% | C7: 11.52% | D7: 12.49% | E7: 11.52% | F7: 7.70% | G7: 6.18%
A8: 5 | C8: 11.52% | D8: 8.93% | E8: 9.22% | F8: 6.93% | G8: 5.71%
A9: 6 | C9: 5.76% | D9: 8.92% | E9: 7.37% | F9: 6.23% | G9: 5.29%
A10: 7 | D10: 8.93% | E10: 6.55% | F10: 5.90% | G10: 4.89%
A11: 8 | D11: 4.46% | E11: 6.55% | F11: 5.90% | G11: 4.52%
A12: 9 | E12: 6.56% | F12: 5.91% | G12: 4.46%
A13: 10 | E13: 6.55% | F13: 5.90% | G13: 4.46%
A14: 11 | E14: 3.28% | F14: 5.91% | G14: 4.46%
A15: 12 | F15: 5.90% | G15: 4.46%
A16: 13 | F16: 5.91% | G16: 4.46%
A17: 14 | F17: 5.90% | G17: 4.46%
A18: 15 | F18: 5.91% | G18: 4.46%
A19: 16 | F19: 2.95% | G19: 4.46%
A20: 17 | G20: 4.46%
A21: 18 | G21: 4.46%
A22: 19 | G22: 4.46%
A23: 20 | G23: 4.46%
A24: 21 | G24: 2.23%

Sheet GDS
A1: Asset Cost | B1: $10,000.00 | D1: Year | E1: Depreciation | F1: Book Value
A2: Life (Years) | B2: 7 | D2: 0 | F2: =B1 -> $10,000.00
A3: Convention | B3: Half-Year | D3: 1 | E3: =$B$1*(_xlfn.XLOOKUP(D3,'Half-Year Table'!$A$4:$A$10,'Half-Year Table'!$D$4:$D$10)) -> $1,429.00 | F3: =F2-E3 -> $8,571.00
D4: 2 | E4: =$B$1*(_xlfn.XLOOKUP(D4,'Half-Year Table'!$A$4:$A$10,'Half-Year Table'!$D$4:$D$10)) -> $2,449.00 | F4: =F3-E4 -> $6,122.00
D5: 3 | E5: =$B$1*(_xlfn.XLOOKUP(D5,'Half-Year Table'!$A$4:$A$10,'Half-Year Table'!$D$4:$D$10)) -> $1,749.00 | F5: $4,373.00
D6: 4 | E6: =$B$1*(_xlfn.XLOOKUP(D6,'Half-Year Table'!$A$4:$A$10,'Half-Year Table'!$D$4:$D$10)) -> $1,249.00 | F6: $3,124.00
D7: 5 | E7: =$B$1*(_xlfn.XLOOKUP(D7,'Half-Year Table'!$A$4:$A$10,'Half-Year Table'!$D$4:$D$10)) -> $893.00 | F7: $2,231.00
D8: 6 | E8: =$B$1*(_xlfn.XLOOKUP(D8,'Half-Year Table'!$A$4:$A$10,'Half-Year Table'!$D$4:$D$10)) -> $892.00 | F8: $1,339.00
D9: 7 | E9: =$B$1*(_xlfn.XLOOKUP(D9,'Half-Year Table'!$A$4:$A$10,'Half-Year Table'!$D$4:$D$10)) -> $893.00 | F9: $446.00
D10: 8 | E10: =$B$1*(_xlfn.XLOOKUP(D10,'Half-Year Table'!$A$4:$A$11,'Half-Year Table'!$D$4:$D$11)) -> $446.00 | F10: $0.00
